[Event "Live Chess"]
[Site "Chess.com"]
[Date "2024.06.01"]
[Round "-"]
[White "CheckThis4"]
[Black "blunderabit"]
[Result "1-0"]
[WhiteElo "2693"]
[BlackElo "1814"]
[TimeControl "300"]
[EndTime "10:26:37 PDT"]
[Termination "CheckThis4 won on time"]

1. d4 {[%clk 0:04:56.7]} 1... d5 {[%clk 0:04:57.8]} 2. Nc3 {[%clk 0:04:55.8]}
2... Nf6 {[%clk 0:04:54.4]} 3. e4 {[%clk 0:04:54.9]} 3... dxe4 {[%clk
0:04:51.5]} 4. f3 {[%clk 0:04:53.9]} 4... e3 {[%clk 0:04:50.9]} 5. Bxe3 {[%clk
0:04:52.3]} 5... c6 {[%clk 0:04:48.8]} 6. Bc4 {[%clk 0:04:50.2]} 6... Nbd7
{[%clk 0:04:45.4]} 7. Qe2 {[%clk 0:04:38.7]} 7... Nb6 {[%clk 0:04:44.1]} 8. Bb3
{[%clk 0:04:37.5]} 8... g6 {[%clk 0:04:41.3]} 9. g4 {[%clk 0:04:33.8]} 9... Bg7
{[%clk 0:04:36.9]} 10. O-O-O {[%clk 0:04:31.6]} 10... O-O {[%clk 0:04:32.7]} 11.
h4 {[%clk 0:04:30.3]} 11... a5 {[%clk 0:04:21]} 12. a4 {[%clk 0:04:25.4]} 12...
Nbd5 {[%clk 0:04:17]} 13. h5 {[%clk 0:04:19.5]} 13... Be6 {[%clk 0:03:52.1]} 14.
hxg6 {[%clk 0:04:17.4]} 14... fxg6 {[%clk 0:03:47.9]} 15. Bh6 {[%clk 0:04:08.8]}
15... Bxh6+ {[%clk 0:03:35.8]} 16. Rxh6 {[%clk 0:04:07.1]} 16... Qd6 {[%clk
0:03:35.3]} 17. Nh3 {[%clk 0:03:55]} 17... Kg7 {[%clk 0:03:14.4]} 18. Rh4 {[%clk
0:03:01.3]} 18... Bg8 {[%clk 0:02:03]} 19. Ne4 {[%clk 0:02:48.7]} 19... Nxe4
{[%clk 0:01:47.2]} 20. fxe4 {[%clk 0:02:46]} 20... Nf4 {[%clk 0:01:45.1]} 21.
Nxf4 {[%clk 0:02:39.1]} 21... Qxf4+ {[%clk 0:01:43.5]} 22. Kb1 {[%clk
0:02:36.6]} 22... Bxb3 {[%clk 0:01:24.9]} 23. cxb3 {[%clk 0:02:34.9]} 23... Qf2
{[%clk 0:01:23.4]} 24. Qxf2 {[%clk 0:02:26.7]} 24... Rxf2 {[%clk 0:01:22.7]} 25.
g5 {[%clk 0:02:12]} 25... Rg2 {[%clk 0:01:16.7]} 26. Rf1 {[%clk 0:02:09.5]}
26... Rxg5 {[%clk 0:01:08.4]} 27. Rhf4 {[%clk 0:02:08.4]} 27... Re8 {[%clk
0:01:03.7]} 28. Rf7+ {[%clk 0:02:05.3]} 28... Kg8 {[%clk 0:01:01.5]} 29. Kc2
{[%clk 0:02:01.6]} 29... h5 {[%clk 0:00:59.9]} 30. e5 {[%clk 0:01:57.1]} 30...
h4 {[%clk 0:00:55]} 31. e6 {[%clk 0:01:52.1]} 31... c5 {[%clk 0:00:34.9]} 32. d5
{[%clk 0:01:36.3]} 32... Rxd5 {[%clk 0:00:21]} 33. Rg1 {[%clk 0:01:35.4]} 33...
g5 {[%clk 0:00:19.8]} 34. Rgf1 {[%clk 0:01:34.4]} 34... Re5 {[%clk 0:00:16.8]}
35. Kc3 {[%clk 0:01:29.8]} 35... Rxe6 {[%clk 0:00:15.5]} 36. R7f5 {[%clk
0:01:28.9]} 36... Rg6 {[%clk 0:00:13.9]} 37. Rg1 {[%clk 0:01:27]} 37... Kh7
{[%clk 0:00:08.5]} 38. Rf7+ {[%clk 0:01:24.6]} 38... Kh6 {[%clk 0:00:05.9]} 39.
Kc4 {[%clk 0:01:22]} 39... g4 {[%clk 0:00:03.4]} 40. Rf4 {[%clk 0:01:19.9]} 1-0

[Event "Live Chess"]
[Site "Chess.com"]
[Date "2024.06.01"]
[Round "-"]
[White "SirGerhard"]
[Black "Grace6363"]
[Result "1-0"]
[WhiteElo "2771"]
[BlackElo "1109"]
[TimeControl "300"]
[EndTime "10:26:46 PDT"]
[Termination "SirGerhard won by resignation"]

1. d4 {[%clk 0:04:58.3]} 1... Nf6 {[%clk 0:04:57.8]} 2. Bg5 {[%clk 0:04:57.1]}
2... e6 {[%clk 0:04:55.5]} 3. e4 {[%clk 0:04:55.9]} 3... Be7 {[%clk 0:04:54.3]}
4. Nd2 {[%clk 0:04:54.7]} 4... h6 {[%clk 0:04:50.9]} 5. Be3 {[%clk 0:04:53.5]}
5... O-O {[%clk 0:04:49.3]} 6. Bd3 {[%clk 0:04:52]} 6... d5 {[%clk 0:04:44.2]}
7. e5 {[%clk 0:04:50.8]} 7... Nh7 {[%clk 0:04:36.9]} 8. Qg4 {[%clk 0:04:48.2]}
8... Bg5 {[%clk 0:04:33.6]} 9. f4 {[%clk 0:04:45.8]} 9... f5 {[%clk 0:04:25.2]}
10. Qh5 {[%clk 0:04:41.2]} 10... Be7 {[%clk 0:03:58.7]} 11. g4 {[%clk
0:04:40.3]} 11... Qe8 {[%clk 0:03:56.5]} 12. Qh3 {[%clk 0:04:36.8]} 12... Qg6
{[%clk 0:03:46.3]} 13. gxf5 {[%clk 0:04:34.3]} 13... exf5 {[%clk 0:03:43.7]} 14.
Ne2 {[%clk 0:04:33.2]} 14... Qg4 {[%clk 0:03:35]} 15. Qxg4 {[%clk 0:04:32.3]}
15... fxg4 {[%clk 0:03:34.3]} 16. Ng3 {[%clk 0:04:31.6]} 16... Bh4 {[%clk
0:03:32.5]} 17. O-O {[%clk 0:04:25.4]} 17... Bxg3 {[%clk 0:03:29.9]} 18. hxg3
{[%clk 0:04:24.4]} 18... Bf5 {[%clk 0:03:29]} 19. Bxf5 {[%clk 0:04:22]} 19...
Rxf5 {[%clk 0:03:28]} 20. c4 {[%clk 0:04:21.9]} 20... c6 {[%clk 0:03:25.1]} 21.
cxd5 {[%clk 0:04:21]} 21... cxd5 {[%clk 0:03:24.4]} 22. Rfc1 {[%clk 0:04:20.9]}
22... Nc6 {[%clk 0:03:22.1]} 23. Rc5 {[%clk 0:04:20.1]} 23... Rd8 {[%clk
0:03:14.6]} 24. Rac1 {[%clk 0:04:18.8]} 24... Nf8 {[%clk 0:03:08.2]} 25. Rb5
{[%clk 0:04:18.1]} 25... Rd7 {[%clk 0:03:01]} 26. Rcc5 {[%clk 0:04:16.3]} 26...
Ne6 {[%clk 0:02:45.7]} 27. Rxd5 {[%clk 0:04:13.7]} 27... Rxd5 {[%clk 0:02:44]}
28. Rxd5 {[%clk 0:04:12.7]} 28... Ncxd4 {[%clk 0:02:38.8]} 29. Bxd4 {[%clk
0:04:11.3]} 29... Nxd4 {[%clk 0:02:26.2]} 30. Rxd4 {[%clk 0:04:10.6]} 30... Kf7
{[%clk 0:02:21.3]} 31. Rd7+ {[%clk 0:04:09.8]} 31... Ke6 {[%clk 0:02:19.1]} 32.
Rxb7 {[%clk 0:04:08.9]} 1-0

[Event "Live Chess"]
[Site "Chess.com"]
[Date "2024.06.01"]
[Round "-"]
[White "kylet1990"]
[Black "DenisOnopriichuk2003"]
[Result "0-1"]
[WhiteElo "724"]
[BlackElo "1827"]
[TimeControl "300"]
[EndTime "10:27:30 PDT"]
[Termination "DenisOnopriichuk2003 won by resignation"]

1. e4 {[%clk 0:04:58.1]} 1... c6 {[%clk 0:04:58.9]} 2. Nc3 {[%clk 0:04:56]} 2...
d5 {[%clk 0:04:58.8]} 3. Nf3 {[%clk 0:04:53.7]} 3... dxe4 {[%clk 0:04:57.8]} 4.
Nxe4 {[%clk 0:04:52.1]} 4... Nf6 {[%clk 0:04:57.2]} 5. Nxf6+ {[%clk 0:04:50.4]}
5... exf6 {[%clk 0:04:57.1]} 6. d4 {[%clk 0:04:48.8]} 6... c5 {[%clk 0:04:55.4]}
7. Be3 {[%clk 0:04:28.8]} 7... cxd4 {[%clk 0:04:54.3]} 8. Bxd4 {[%clk
0:04:26.5]} 8... Nc6 {[%clk 0:04:53.8]} 9. Bb5 {[%clk 0:04:15.3]} 9... Qa5+
{[%clk 0:04:50.1]} 10. Bc3 {[%clk 0:04:04.8]} 10... Qxb5 {[%clk 0:04:48.9]} 11.
Qe2+ {[%clk 0:03:55.7]} 11... Qxe2+ {[%clk 0:04:46]} 12. Kxe2 {[%clk 0:03:52.5]}
12... Bc5 {[%clk 0:04:45.9]} 13. Rhf1 {[%clk 0:03:47.6]} 13... Be6 {[%clk
0:04:44.7]} 14. b3 {[%clk 0:03:44.5]} 14... O-O-O {[%clk 0:04:42]} 15. a3 {[%clk
0:03:34.9]} 15... Bg4 {[%clk 0:04:40.2]} 16. b4 {[%clk 0:03:31.1]} 16... Bxf3+
{[%clk 0:04:39.1]} 17. Kxf3 {[%clk 0:03:27.4]} 17... Bb6 {[%clk 0:04:38.1]} 18.
b5 {[%clk 0:03:21.3]} 18... Ne5+ {[%clk 0:04:36.9]} 19. Kg3 {[%clk 0:03:14.7]}
19... g5 {[%clk 0:04:34.7]} 20. Rfe1 {[%clk 0:03:02.8]} 20... Bc7 {[%clk
0:04:31.9]} 21. Kh3 {[%clk 0:02:57.3]} 21... h5 {[%clk 0:04:28.1]} 22. Bxe5
{[%clk 0:02:53.3]} 22... fxe5 {[%clk 0:04:25.1]} 23. g3 {[%clk 0:02:49.9]} 23...
f5 {[%clk 0:04:24.1]} 24. a4 {[%clk 0:02:42.5]} 24... h4 {[%clk 0:04:22.4]} 25.
Kg2 {[%clk 0:02:26.4]} 25... hxg3 {[%clk 0:04:20.2]} 26. hxg3 {[%clk 0:02:25.1]}
26... f4 {[%clk 0:04:19]} 27. gxf4 {[%clk 0:02:21.3]} 27... gxf4 {[%clk
0:04:17.8]} 28. Ra3 {[%clk 0:02:16.2]} 28... Rdg8+ {[%clk 0:04:16.3]} 29. Kf3
{[%clk 0:02:13.2]} 29... Rh3+ {[%clk 0:04:15.3]} 0-1

[Event "Live Chess"]
[Site "Chess.com"]
[Date "2024.06.01"]
[Round "-"]
[White "booktrunk"]
[Black "GEMdzq"]
[Result "0-1"]
[WhiteElo "1401"]
[BlackElo "2313"]
[TimeControl "300"]
[EndTime "10:27:48 PDT"]
[Termination "GEMdzq won by checkmate"]

1. d4 {[%clk 0:04:54.9]} 1... Nf6 {[%clk 0:04:58.6]} 2. Bf4 {[%clk 0:04:51.6]}
2... e6 {[%clk 0:04:56.7]} 3. Nc3 {[%clk 0:04:51.5]} 3... c5 {[%clk 0:04:55.9]}
4. dxc5 {[%clk 0:04:45.8]} 4... Bxc5 {[%clk 0:04:55]} 5. a3 {[%clk 0:04:42.7]}
5... O-O {[%clk 0:04:53.8]} 6. Nb5 {[%clk 0:04:41.4]} 6... Bxf2+ {[%clk
0:04:49.6]} 7. Kxf2 {[%clk 0:04:36.7]} 7... Qb6+ {[%clk 0:04:47]} 8. Nd4 {[%clk
0:04:32.4]} 8... Nc6 {[%clk 0:04:46.3]} 9. c3 {[%clk 0:04:29.8]} 9... e5 {[%clk
0:04:45.4]} 10. Bxe5 {[%clk 0:04:25.2]} 10... Nxe5 {[%clk 0:04:44.2]} 11. e3
{[%clk 0:04:18.4]} 11... Neg4+ {[%clk 0:04:40.2]} 12. Ke2 {[%clk 0:04:14.8]}
12... d5 {[%clk 0:04:38.5]} 13. Ngf3 {[%clk 0:04:12.5]} 13... Re8 {[%clk
0:04:36.8]} 14. Kd2 {[%clk 0:04:04.8]} 14... Qxb2+ {[%clk 0:04:34.8]} 15. Qc2
{[%clk 0:04:03.1]} 15... Qxc2+ {[%clk 0:04:33.1]} 16. Nxc2 {[%clk 0:04:00.9]}
16... Ne4+ {[%clk 0:04:30]} 17. Kc1 {[%clk 0:03:56.3]} 17... Nxc3 {[%clk
0:04:24.5]} 18. h3 {[%clk 0:03:51.9]} 18... Nf2 {[%clk 0:04:16.1]} 19. Rg1
{[%clk 0:03:50.1]} 19... Bf5 {[%clk 0:04:15.3]} 20. Nfd4 {[%clk 0:03:45.1]}
20... Be4 {[%clk 0:04:05.5]} 21. g4 {[%clk 0:03:41.8]} 21... Rac8 {[%clk
0:04:02.9]} 22. Bg2 {[%clk 0:03:40.1]} 22... Bxc2 {[%clk 0:03:51.8]} 23. Nxc2
{[%clk 0:03:37.6]} 23... Ne2+ {[%clk 0:03:50.9]} 24. Kd2 {[%clk 0:03:35.8]}
24... Nxg1 {[%clk 0:03:50.3]} 25. Rxg1 {[%clk 0:03:33]} 25... Ne4+ {[%clk
0:03:49.6]} 26. Bxe4 {[%clk 0:03:30.5]} 26... dxe4 {[%clk 0:03:48.2]} 27. Nd4
{[%clk 0:03:28.2]} 27... g6 {[%clk 0:03:42.1]} 28. Rb1 {[%clk 0:03:25.1]} 28...
Rc7 {[%clk 0:03:40]} 29. Nb5 {[%clk 0:03:14.1]} 29... Rd7+ {[%clk 0:03:37.9]}
30. Ke2 {[%clk 0:03:12.3]} 30... b6 {[%clk 0:03:36.4]} 31. a4 {[%clk 0:02:50.8]}
31... Rc8 {[%clk 0:03:34.8]} 32. Nd4 {[%clk 0:02:49]} 32... Kg7 {[%clk
0:03:25.2]} 33. h4 {[%clk 0:02:34.5]} 33... Rc4 {[%clk 0:03:16.7]} 34. h5 {[%clk
0:02:31.9]} 34... Rcxd4 {[%clk 0:03:11.3]} 35. exd4 {[%clk 0:02:29.9]} 35...
Rxd4 {[%clk 0:03:11.2]} 36. Ra1 {[%clk 0:02:28.4]} 36... gxh5 {[%clk 0:03:09.3]}
37. gxh5 {[%clk 0:02:26.7]} 37... f5 {[%clk 0:03:05.7]} 38. Ke3 {[%clk
0:02:25.6]} 38... Rd3+ {[%clk 0:03:04.2]} 39. Kf4 {[%clk 0:02:24.4]} 39... Kf6
{[%clk 0:03:03.6]} 40. Rc1 {[%clk 0:02:18.4]} 40... Rf3# {[%clk 0:03:02.6]} 0-1

[Event "Live Chess"]
[Site "Chess.com"]
[Date "2024.06.01"]
[Round "-"]
[White "ACM42"]
[Black "matt1979"]
[Result "1-0"]
[WhiteElo "2218"]
[BlackElo "1361"]
[TimeControl "300"]
[EndTime "10:27:55 PDT"]
[Termination "ACM42 won by resignation"]

1. e4 {[%clk 0:04:57.8]} 1... d6 {[%clk 0:04:57.7]} 2. d4 {[%clk 0:04:56.1]}
2... Nf6 {[%clk 0:04:56]} 3. Nc3 {[%clk 0:04:55.1]} 3... Nbd7 {[%clk 0:04:53.9]}
4. f4 {[%clk 0:04:52.2]} 4... e5 {[%clk 0:04:52.8]} 5. Nf3 {[%clk 0:04:48.1]}
5... exd4 {[%clk 0:04:51]} 6. Nxd4 {[%clk 0:04:46.7]} 6... c6 {[%clk 0:04:41.8]}
7. Be2 {[%clk 0:04:45.4]} 7... Be7 {[%clk 0:04:33.6]} 8. Nf5 {[%clk 0:04:36.7]}
8... O-O {[%clk 0:04:30.8]} 9. Nxd6 {[%clk 0:04:35.2]} 9... Bxd6 {[%clk
0:04:29.1]} 10. Qxd6 {[%clk 0:04:33.9]} 10... Qb6 {[%clk 0:04:25]} 11. e5 {[%clk
0:04:27.5]} 11... Ne8 {[%clk 0:04:08.4]} 12. Qd3 {[%clk 0:04:25.8]} 12... Nc5
{[%clk 0:04:03.6]} 13. Qe3 {[%clk 0:04:24.6]} 13... Bf5 {[%clk 0:03:55.2]} 14.
O-O {[%clk 0:04:12.5]} 14... Bxc2 {[%clk 0:03:47.7]} 15. Kh1 {[%clk 0:04:06.7]}
15... Rd8 {[%clk 0:03:31]} 16. f5 {[%clk 0:03:58.2]} 16... Nc7 {[%clk
0:02:56.4]} 17. f6 {[%clk 0:03:49.9]} 17... g6 {[%clk 0:02:50]} 18. Qh6 {[%clk
0:03:40.8]} 18... N5e6 {[%clk 0:02:46.3]} 19. Rf3 {[%clk 0:03:29.8]} 19... Bf5
{[%clk 0:02:25.9]} 20. Ne4 {[%clk 0:03:14.2]} 20... Qb4 {[%clk 0:02:02.6]} 21.
Ng5 {[%clk 0:02:56.2]} 21... Qe1+ {[%clk 0:01:55.7]} 22. Rf1 {[%clk 0:02:54.6]}
1-0

[Event "Live Chess"]
[Site "Chess.com"]
[Date "2024.06.01"]
[Round "-"]
[White "PaulHumphreys"]
[Black "degringolade64"]
[Result "0-1"]
[WhiteElo "1374"]
[BlackElo "2073"]
[TimeControl "300"]
[EndTime "10:27:58 PDT"]
[Termination "degringolade64 won on time"]

1. d4 {[%clk 0:04:56]} 1... Nf6 {[%clk 0:04:57.8]} 2. Nc3 {[%clk 0:04:53.7]}
2... d5 {[%clk 0:04:56.4]} 3. Bf4 {[%clk 0:04:52.2]} 3... e6 {[%clk 0:04:55.3]}
4. Nb5 {[%clk 0:04:46.9]} 4... Na6 {[%clk 0:04:53.4]} 5. e3 {[%clk 0:04:44.9]}
5... Be7 {[%clk 0:04:51.7]} 6. Nf3 {[%clk 0:04:42.9]} 6... O-O {[%clk
0:04:50.3]} 7. Bd3 {[%clk 0:04:40.2]} 7... c6 {[%clk 0:04:47.5]} 8. Nc3 {[%clk
0:04:37.9]} 8... Nb4 {[%clk 0:04:46.9]} 9. Be2 {[%clk 0:04:29]} 9... c5 {[%clk
0:04:45]} 10. a3 {[%clk 0:04:27.4]} 10... Nc6 {[%clk 0:04:43.5]} 11. Nb5 {[%clk
0:04:20.8]} 11... Bd7 {[%clk 0:04:39.1]} 12. O-O {[%clk 0:04:12.5]} 12... a6
{[%clk 0:04:33]} 13. Nd6 {[%clk 0:04:07.3]} 13... Qb6 {[%clk 0:04:12]} 14. dxc5
{[%clk 0:03:54.6]} 14... Qxc5 {[%clk 0:04:03]} 15. Nxb7 {[%clk 0:03:44.8]} 15...
Qb6 {[%clk 0:04:01.9]} 16. Nd6 {[%clk 0:03:36.5]} 16... e5 {[%clk 0:03:59.2]}
17. Nxe5 {[%clk 0:03:11.5]} 17... Nxe5 {[%clk 0:03:50.5]} 18. Bxe5 {[%clk
0:02:46.2]} 18... Bxd6 {[%clk 0:03:47]} 19. Bd4 {[%clk 0:02:37.9]} 19... Qc7
{[%clk 0:03:42]} 20. g3 {[%clk 0:02:34.1]} 20... Ne4 {[%clk 0:03:30.6]} 21. f4
{[%clk 0:02:15.9]} 21... f5 {[%clk 0:03:19.9]} 22. Rc1 {[%clk 0:01:56.7]} 22...
Be6 {[%clk 0:02:43.3]} 23. Bd3 {[%clk 0:01:22]} 23... Bc5 {[%clk 0:02:22.8]} 24.
c3 {[%clk 0:01:11]} 24... Bxd4 {[%clk 0:02:14.9]} 25. cxd4 {[%clk 0:01:04.8]}
25... Qb6 {[%clk 0:02:13.7]} 26. b4 {[%clk 0:00:50.3]} 26... Rac8 {[%clk
0:02:10.5]} 27. Bxe4 {[%clk 0:00:47.7]} 27... dxe4 {[%clk 0:02:02.7]} 28. Rc5
{[%clk 0:00:44.8]} 28... Rxc5 {[%clk 0:01:55.9]} 29. dxc5 {[%clk 0:00:39.7]}
29... Qc6 {[%clk 0:01:51.7]} 30. Qd4 {[%clk 0:00:19.1]} 30... Qd7 {[%clk
0:01:38.5]} 31. Qxd7 {[%clk 0:00:15.6]} 31... Bxd7 {[%clk 0:01:37.3]} 32. Rd1
{[%clk 0:00:15.1]} 32... Bb5 {[%clk 0:01:35.6]} 33. Rd6 {[%clk 0:00:10.5]} 33...
Rc8 {[%clk 0:01:32.2]} 34. Kf2 {[%clk 0:00:05]} 34... Kf7 {[%clk 0:01:24.8]} 35.
h3 {[%clk 0:00:02.4]} 35... Rc6 {[%clk 0:01:22.9]} 0-1

[Event "Live Chess"]
[Site "Chess.com"]
[Date "2024.06.01"]
[Round "-"]
[White "updatedopenings2024"]
[Black "KeithArkell"]
[Result "0-1"]
[WhiteElo "1804"]
[BlackElo "2517"]
[TimeControl "300"]
[EndTime "10:28:04 PDT"]
[Termination "KeithArkell won by resignation"]

1. e4 {[%clk 0:04:55.3]} 1... c6 {[%clk 0:04:59.4]} 2. d4 {[%clk 0:04:53.5]}
2... d5 {[%clk 0:04:58.7]} 3. e5 {[%clk 0:04:53.3]} 3... c5 {[%clk 0:04:57.7]}
4. dxc5 {[%clk 0:04:52.6]} 4... Nc6 {[%clk 0:04:56.3]} 5. f4 {[%clk 0:04:51.7]}
5... e6 {[%clk 0:04:53.7]} 6. Be3 {[%clk 0:04:50.5]} 6... d4 {[%clk 0:04:52.7]}
7. Bf2 {[%clk 0:04:50]} 7... Bxc5 {[%clk 0:04:51.9]} 8. Nd2 {[%clk 0:04:49]}
8... Nge7 {[%clk 0:04:51.2]} 9. a3 {[%clk 0:04:47.9]} 9... Nd5 {[%clk
0:04:49.8]} 10. Bd3 {[%clk 0:04:46.4]} 10... Nxf4 {[%clk 0:04:48.5]} 11. Be4
{[%clk 0:04:42.7]} 11... a6 {[%clk 0:04:39.9]} 12. Qg4 {[%clk 0:04:33.6]} 12...
Ng6 {[%clk 0:04:39]} 13. Bg3 {[%clk 0:04:03.9]} 13... O-O {[%clk 0:04:32.8]} 14.
Ngf3 {[%clk 0:04:02.4]} 14... f5 {[%clk 0:04:28.6]} 15. exf6 {[%clk 0:04:01.4]}
15... Qxf6 {[%clk 0:04:27.8]} 16. h4 {[%clk 0:03:47.5]} 16... e5 {[%clk
0:04:26.2]} 17. Qh5 {[%clk 0:03:46.4]} 17... Bf5 {[%clk 0:04:16.6]} 18. Rf1
{[%clk 0:03:38.5]} 18... Nf4 {[%clk 0:04:08.7]} 19. Bxf4 {[%clk 0:03:23.3]}
19... exf4 {[%clk 0:04:08.6]} 20. O-O-O {[%clk 0:03:19]} 20... g6 {[%clk
0:04:04.5]} 21. Qg5 {[%clk 0:03:13.1]} 21... Qxg5 {[%clk 0:04:02.6]} 22. Nxg5
{[%clk 0:03:12.5]} 22... h6 {[%clk 0:03:57.7]} 23. Bd5+ {[%clk 0:03:10.8]} 23...
Kg7 {[%clk 0:03:56.2]} 24. Ne6+ {[%clk 0:03:09.4]} 24... Bxe6 {[%clk 0:03:55.6]}
25. Bxe6 {[%clk 0:03:09.3]} 25... g5 {[%clk 0:03:51.6]} 26. g3 {[%clk
0:02:45.8]} 26... fxg3 {[%clk 0:03:46]} 27. hxg5 {[%clk 0:02:45]} 27... hxg5
{[%clk 0:03:44.5]} 28. Rg1 {[%clk 0:02:43.8]} 28... Bd6 {[%clk 0:03:41.3]} 29.
Ne4 {[%clk 0:02:31.3]} 29... Bf4+ {[%clk 0:03:40.4]} 30. Kb1 {[%clk 0:02:30.8]}
30... Rae8 {[%clk 0:03:37.5]} 31. Bd5 {[%clk 0:02:30.2]} 31... Re5 {[%clk
0:03:24.6]} 32. Bxc6 {[%clk 0:02:28.2]} 32... bxc6 {[%clk 0:03:24.5]} 33. Nxg3
{[%clk 0:02:27.4]} 33... Bxg3 {[%clk 0:03:21.8]} 34. Rxg3 {[%clk 0:02:27.3]}
34... c5 {[%clk 0:03:21.3]} 35. c3 {[%clk 0:02:25.6]} 35... dxc3 {[%clk
0:03:12.1]} 36. Rxc3 {[%clk 0:02:24.7]} 36... Kg6 {[%clk 0:03:05.7]} 37. Rd6+
{[%clk 0:02:14.1]} 37... Rf6 {[%clk 0:03:04.2]} 38. Rd8 {[%clk 0:02:13.6]} 38...
g4 {[%clk 0:02:54.2]} 39. Rg8+ {[%clk 0:02:12.3]} 39... Kf5 {[%clk 0:02:50.4]}
40. Rg3 {[%clk 0:02:03.1]} 40... Re4 {[%clk 0:02:48.2]} 41. Rc3 {[%clk
0:01:50.8]} 41... c4 {[%clk 0:02:42.9]} 42. Rc8 {[%clk 0:01:38.5]} 42... Rg6
{[%clk 0:02:32.7]} 43. Rf8+ {[%clk 0:01:31.8]} 43... Kg5 {[%clk 0:02:25.5]} 44.
Rh8 {[%clk 0:01:22.5]} 44... Kf4 {[%clk 0:02:19.1]} 45. Rf8+ {[%clk 0:01:21.2]}
45... Ke5 {[%clk 0:02:18.3]} 46. Re8+ {[%clk 0:01:06.7]} 46... Re6 {[%clk
0:02:12.3]} 47. Rg8 {[%clk 0:01:03.9]} 47... Rf6 {[%clk 0:01:39.6]} 48. Rg3
{[%clk 0:00:49.8]} 48... Kf5 {[%clk 0:01:34.4]} 49. Rg1 {[%clk 0:00:45.4]} 49...
Rg6 {[%clk 0:01:30]} 50. Rf1+ {[%clk 0:00:37.6]} 50... Kg5 {[%clk 0:01:29.2]}
51. Rh8 {[%clk 0:00:36.7]} 51... g3 {[%clk 0:01:27.3]} 52. Rg1 {[%clk
0:00:32.3]} 52... Kg4 {[%clk 0:01:24.4]} 53. Kc2 {[%clk 0:00:28.8]} 53... Rg5
{[%clk 0:00:49.9]} 54. Kc3 {[%clk 0:00:19.7]} 54... Rf4 {[%clk 0:00:48]} 55. Rc8
{[%clk 0:00:17.5]} 55... Kf3 {[%clk 0:00:45.2]} 56. Rf1+ {[%clk 0:00:12.8]}
56... Kg4 {[%clk 0:00:42.4]} 57. Rxf4+ {[%clk 0:00:09.8]} 57... Kxf4 {[%clk
0:00:41.7]} 58. Rxc4+ {[%clk 0:00:09.6]} 58... Kf3 {[%clk 0:00:41.3]} 59. Rc6
{[%clk 0:00:07.3]} 59... g2 {[%clk 0:00:40.2]} 60. Rf6+ {[%clk 0:00:06.8]} 60...
Ke2 {[%clk 0:00:38.2]} 61. Rxa6 {[%clk 0:00:06.5]} 61... g1=Q {[%clk 0:00:37]}
62. Re6+ {[%clk 0:00:06.4]} 62... Kf3 {[%clk 0:00:32.4]} 63. Kb3 {[%clk
0:00:06.1]} 63... Rb5+ {[%clk 0:00:30.5]} 64. Ka2 {[%clk 0:00:06]} 64... Qh2
{[%clk 0:00:27.3]} 65. Re2 {[%clk 0:00:04.8]} 65... Qxe2 {[%clk 0:00:25.8]} 0-1

[Event "Live Chess"]
[Site "Chess.com"]
[Date "2024.06.01"]
[Round "-"]
[White "Dhaydon19"]
[Black "SavagePawn7"]
[Result "1-0"]
[WhiteElo "2681"]
[BlackElo "684"]
[TimeControl "300"]
[EndTime "10:28:06 PDT"]
[Termination "Dhaydon19 won by checkmate"]

1. d4 {[%clk 0:04:58]} 1... e5 {[%clk 0:04:57.4]} 2. Nf3 {[%clk 0:04:57.7]} 2...
exd4 {[%clk 0:04:54.6]} 3. Nxd4 {[%clk 0:04:57]} 3... Nf6 {[%clk 0:04:50.1]} 4.
g3 {[%clk 0:04:54.8]} 4... d5 {[%clk 0:04:45.6]} 5. Bg2 {[%clk 0:04:53]} 5...
Bc5 {[%clk 0:04:40.2]} 6. O-O {[%clk 0:04:50.4]} 6... Bxd4 {[%clk 0:04:34.8]} 7.
Qxd4 {[%clk 0:04:43.9]} 7... Nc6 {[%clk 0:04:32.9]} 8. Qd1 {[%clk 0:04:40.7]}
8... O-O {[%clk 0:04:27.5]} 9. c3 {[%clk 0:04:39.5]} 9... Bf5 {[%clk 0:04:17.3]}
10. Nd2 {[%clk 0:04:36.9]} 10... Re8 {[%clk 0:04:03.7]} 11. Nb3 {[%clk
0:04:34.2]} 11... b6 {[%clk 0:03:55.3]} 12. Bg5 {[%clk 0:04:31.4]} 12... h6
{[%clk 0:03:51]} 13. Bxf6 {[%clk 0:04:30.4]} 13... Qxf6 {[%clk 0:03:49.4]} 14.
Qxd5 {[%clk 0:04:30.1]} 14... Rad8 {[%clk 0:03:36.8]} 15. Qxc6 {[%clk 0:04:28]}
15... Qxc6 {[%clk 0:03:33.5]} 16. Bxc6 {[%clk 0:04:27.7]} 16... Re6 {[%clk
0:03:28.8]} 17. Bf3 {[%clk 0:04:25.4]} 17... Bh3 {[%clk 0:03:21.6]} 18. Rfd1
{[%clk 0:04:22.9]} 18... Rde8 {[%clk 0:03:14.4]} 19. Nd4 {[%clk 0:04:20]} 19...
Rd6 {[%clk 0:03:10.4]} 20. Nb5 {[%clk 0:04:19.1]} 20... Rxd1+ {[%clk 0:03:07.7]}
21. Rxd1 {[%clk 0:04:17.4]} 21... c6 {[%clk 0:03:05.1]} 22. Nxa7 {[%clk
0:04:14.8]} 22... Ra8 {[%clk 0:02:58.5]} 23. Be4 {[%clk 0:04:13.7]} 23... Rxa7
{[%clk 0:02:56.5]} 24. Rd8# {[%clk 0:04:12.1]} 1-0